[Event "*** SCC Grand Prix: Titled Tuesday Blitz"]
[Site "Chess.com"]
[Date "2020.08.11"]
[Round "3"]
[White "GoldenShare"]
[Black "PawnEatingZombie"]
[Result "1-0"]
[WhiteElo "2504"]
[BlackElo "2217"]
[TimeControl "180+1"]
[EndTime "10:30:06 PDT"]
[Termination "GoldenShare won by resignation"]

1. e4 {[%clk 0:03:00.9]} 1... c6 {[%clk 0:02:59.5]} 2. Nc3 {[%clk 0:03:00.7]}
2... d5 {[%clk 0:02:59.9]} 3. Nf3 {[%clk 0:03:01.6]} 3... dxe4 {[%clk
0:02:59.9]} 4. Nxe4 {[%clk 0:03:01.5]} 4... Nf6 {[%clk 0:03:00.8]} 5. Qe2 {[%clk
0:03:01.6]} 5... Nxe4 {[%clk 0:02:59.9]} 6. Qxe4 {[%clk 0:03:02.5]} 6... Qa5
{[%clk 0:02:59.6]} 7. Bc4 {[%clk 0:02:55.9]} 7... Bf5 {[%clk 0:02:59.1]} 8. Qf4
{[%clk 0:02:48.8]} 8... e6 {[%clk 0:02:58.9]} 9. c3 {[%clk 0:02:45.5]} 9... Be7
{[%clk 0:02:57]} 10. d4 {[%clk 0:02:45.7]} 10... O-O {[%clk 0:02:50.3]} 11. O-O
{[%clk 0:02:45.8]} 11... Nd7 {[%clk 0:02:49.4]} 12. Re1 {[%clk 0:02:45.5]} 12...
Rac8 {[%clk 0:02:36.6]} 13. h3 {[%clk 0:02:32.8]} 13... Qc7 {[%clk 0:02:35.1]}
14. Qxc7 {[%clk 0:02:28.8]} 14... Rxc7 {[%clk 0:02:34.8]} 15. Bf4 {[%clk
0:02:29.7]} 15... Rcc8 {[%clk 0:02:33.5]} 16. a4 {[%clk 0:02:28.9]} 16... a5
{[%clk 0:02:25.2]} 17. Ba2 {[%clk 0:02:22]} 17... Rfe8 {[%clk 0:02:20.9]} 18.
Nd2 {[%clk 0:02:20]} 18... Nb6 {[%clk 0:01:39.1]} 19. Ne4 {[%clk 0:02:10.4]}
19... Nxa4 {[%clk 0:01:31.5]} 20. Ng3 {[%clk 0:01:43.6]} 20... Nxb2 {[%clk
0:01:05.6]} 21. Nxf5 {[%clk 0:01:42.3]} 21... exf5 {[%clk 0:01:06.5]} 22. Bb1
{[%clk 0:01:42.1]} 22... Nc4 {[%clk 0:01:02]} 23. Bxf5 {[%clk 0:01:37.6]} 23...
Ra8 {[%clk 0:00:56.2]} 24. Bd7 {[%clk 0:01:37.4]} 24... Kf8 {[%clk 0:00:27.4]}
25. Bxe8 {[%clk 0:01:36.2]} 25... Rxe8 {[%clk 0:00:26.8]} 26. Reb1 {[%clk
0:01:08.9]} 26... b5 {[%clk 0:00:26.6]} 27. d5 {[%clk 0:01:09.2]} 27... b4
{[%clk 0:00:11.1]} 28. dxc6 {[%clk 0:00:58.6]} 28... Rc8 {[%clk 0:00:09.7]} 29.
cxb4 {[%clk 0:00:54.7]} 29... axb4 {[%clk 0:00:08.5]} 30. c7 {[%clk 0:00:54.1]}
30... g5 {[%clk 0:00:07.9]} 31. Bg3 {[%clk 0:00:52.8]} 31... f5 {[%clk
0:00:08.1]} 32. Rc1 {[%clk 0:00:49.5]} 32... Nd2 {[%clk 0:00:05.9]} 33. Be5
{[%clk 0:00:38.9]} 33... Nb3 {[%clk 0:00:03.7]} 34. f3 {[%clk 0:00:21.8]} 34...
Nxc1 {[%clk 0:00:03.6]} 35. Rxc1 {[%clk 0:00:22.7]} 35... Kf7 {[%clk 0:00:03.7]}
36. Rb1 {[%clk 0:00:23]} 36... Ke6 {[%clk 0:00:03.8]} 37. Re1 {[%clk 0:00:22.7]}
37... Kf7 {[%clk 0:00:03.1]} 38. Kf2 {[%clk 0:00:20.8]} 38... Bc5+ {[%clk
0:00:03]} 39. Kg3 {[%clk 0:00:20.6]} 39... Bb6 {[%clk 0:00:03.6]} 40. Rc1 {[%clk
0:00:20.3]} 40... b3 {[%clk 0:00:04]} 41. f4 {[%clk 0:00:11.8]} 41... b2 {[%clk
0:00:04.2]} 42. Bxb2 {[%clk 0:00:11.2]} 42... gxf4+ {[%clk 0:00:05.1]} 43. Kf3
{[%clk 0:00:09.8]} 43... Rxc7 {[%clk 0:00:05.3]} 44. Rd1 {[%clk 0:00:05.7]}
44... Kg6 {[%clk 0:00:05.3]} 45. Rd6+ {[%clk 0:00:04.4]} 45... Kf7 {[%clk
0:00:05]} 46. Rxb6 {[%clk 0:00:05.3]} 46... Rc2 {[%clk 0:00:04.9]} 47. Kxf4
{[%clk 0:00:03.7]} 47... Rxb2 {[%clk 0:00:04.9]} 48. Rxb2 {[%clk 0:00:03.3]}
48... Ke6 {[%clk 0:00:05.6]} 49. Rb6+ {[%clk 0:00:03.3]} 1-0

[Event "*** SCC Grand Prix: Titled Tuesday Blitz"]
[Site "Chess.com"]
[Date "2020.08.11"]
[Round "3"]
[White "Zmeeed63"]
[Black "Danfii"]
[Result "1-0"]
[WhiteElo "2190"]
[BlackElo "2354"]
[TimeControl "180+1"]
[EndTime "10:30:06 PDT"]
[Termination "Zmeeed63 won by resignation"]

1. d4 {[%clk 0:03:00.9]} 1... Nf6 {[%clk 0:02:58.9]} 2. c4 {[%clk 0:03:00.8]}
2... e6 {[%clk 0:02:59]} 3. Nc3 {[%clk 0:03:01.2]} 3... Bb4 {[%clk 0:02:58.8]}
4. f3 {[%clk 0:03:01.5]} 4... c5 {[%clk 0:02:58.6]} 5. d5 {[%clk 0:03:00.5]}
5... O-O {[%clk 0:02:56.8]} 6. e4 {[%clk 0:02:58.6]} 6... exd5 {[%clk
0:02:56.8]} 7. cxd5 {[%clk 0:02:59.5]} 7... d6 {[%clk 0:02:57.1]} 8. Bd3 {[%clk
0:02:42.9]} 8... Re8 {[%clk 0:02:56.9]} 9. Ne2 {[%clk 0:02:39.7]} 9... Nbd7
{[%clk 0:02:51.5]} 10. O-O {[%clk 0:02:37.1]} 10... Ne5 {[%clk 0:02:48.8]} 11.
Kh1 {[%clk 0:02:35.2]} 11... Nxd3 {[%clk 0:02:45.7]} 12. Qxd3 {[%clk 0:02:36.1]}
12... a6 {[%clk 0:02:43.3]} 13. a4 {[%clk 0:02:35.6]} 13... Ba5 {[%clk
0:02:38.2]} 14. Bg5 {[%clk 0:02:35]} 14... h6 {[%clk 0:02:30.2]} 15. Bh4 {[%clk
0:02:34.4]} 15... Qe7 {[%clk 0:02:22.3]} 16. Nd1 {[%clk 0:02:27.7]} 16... Bd7
{[%clk 0:02:14.4]} 17. Qc2 {[%clk 0:02:26.5]} 17... b5 {[%clk 0:02:10.2]} 18.
axb5 {[%clk 0:02:19.9]} 18... axb5 {[%clk 0:02:11.1]} 19. Nf2 {[%clk 0:02:11.2]}
19... Bc7 {[%clk 0:02:04.2]} 20. Nd3 {[%clk 0:02:00.2]} 20... b4 {[%clk
0:01:55.7]} 21. b3 {[%clk 0:01:54.3]} 21... Bb5 {[%clk 0:01:48.2]} 22. Rfe1
{[%clk 0:01:53.6]} 22... g5 {[%clk 0:01:36.7]} 23. Bg3 {[%clk 0:01:50.9]} 23...
Rxa1 {[%clk 0:01:34.7]} 24. Rxa1 {[%clk 0:01:50.3]} 24... Nxd5 {[%clk
0:01:31.1]} 25. Ra7 {[%clk 0:01:25.4]} 25... Ne3 {[%clk 0:01:13.6]} 26. Qd2
{[%clk 0:01:22.4]} 26... Nf1 {[%clk 0:01:13.7]} 27. Qc2 {[%clk 0:01:18.7]} 27...
Nxg3+ {[%clk 0:01:12.7]} 28. Nxg3 {[%clk 0:01:19.6]} 28... Rc8 {[%clk
0:01:02.1]} 29. Nf5 {[%clk 0:01:18.3]} 29... Qf6 {[%clk 0:01:01.9]} 30. g3
{[%clk 0:01:13.7]} 30... Bd7 {[%clk 0:00:58]} 31. Nxb4 {[%clk 0:00:56.2]} 31...
Bxf5 {[%clk 0:00:50.6]} 32. Nd5 {[%clk 0:00:52]} 32... Qe5 {[%clk 0:00:30.7]}
33. Nxc7 {[%clk 0:00:48.5]} 33... Bh3 {[%clk 0:00:29.1]} 34. Nd5 {[%clk
0:00:45.7]} 34... Rb8 {[%clk 0:00:22.3]} 35. Qc4 {[%clk 0:00:19]} 35... Rf8
{[%clk 0:00:10.3]} 36. Ne7+ {[%clk 0:00:17.3]} 36... Kg7 {[%clk 0:00:08.5]} 37.
Qc1 {[%clk 0:00:14.2]} 37... Qd4 {[%clk 0:00:05.8]} 38. Nf5+ {[%clk 0:00:12.6]}
38... Bxf5 {[%clk 0:00:05.4]} 39. exf5 {[%clk 0:00:13.5]} 39... Qd3 {[%clk
0:00:05.9]} 40. Qa1+ {[%clk 0:00:13.1]} 40... Kg8 {[%clk 0:00:06]} 41. Kg2
{[%clk 0:00:13.3]} 41... Re8 {[%clk 0:00:05.7]} 42. Qf6 {[%clk 0:00:12.4]} 42...
Re2+ {[%clk 0:00:05.4]} 43. Kh3 {[%clk 0:00:12.9]} 43... Rxh2+ {[%clk
0:00:02.1]} 44. Kxh2 {[%clk 0:00:12.6]} 44... Qe2+ {[%clk 0:00:02.8]} 45. Kg1
{[%clk 0:00:11.1]} 45... Qe1+ {[%clk 0:00:02.4]} 46. Kg2 {[%clk 0:00:11.5]}
46... Qe2+ {[%clk 0:00:03]} 47. Kh3 {[%clk 0:00:12]} 47... Qf1+ {[%clk
0:00:03.4]} 48. Kg4 {[%clk 0:00:12.2]} 48... h5+ {[%clk 0:00:03.8]} 49. Kxg5
{[%clk 0:00:11.8]} 49... Qc1+ {[%clk 0:00:04.5]} 50. f4 {[%clk 0:00:11.8]} 1-0

[Event "*** SCC Grand Prix: Titled Tuesday Blitz"]
[Site "Chess.com"]
[Date "2020.08.11"]
[Round "3"]
[White "alexrustemov"]
[Black "djano"]
[Result "1-0"]
[WhiteElo "2644"]
[BlackElo "2410"]
[TimeControl "180+1"]
[EndTime "10:30:08 PDT"]
[Termination "alexrustemov won on time"]

1. d4 {[%clk 0:03:00.9]} 1... d5 {[%clk 0:02:58.2]} 2. c4 {[%clk 0:03:00.5]}
2... Nc6 {[%clk 0:02:54]} 3. Nf3 {[%clk 0:02:59.4]} 3... Bg4 {[%clk 0:02:52.9]}
4. cxd5 {[%clk 0:02:58.7]} 4... Bxf3 {[%clk 0:02:52.5]} 5. gxf3 {[%clk
0:02:58.6]} 5... Qxd5 {[%clk 0:02:52]} 6. e3 {[%clk 0:02:58.8]} 6... e5 {[%clk
0:02:51.2]} 7. Nc3 {[%clk 0:02:58.8]} 7... Bb4 {[%clk 0:02:51.2]} 8. Bd2 {[%clk
0:02:58.8]} 8... Bxc3 {[%clk 0:02:51.2]} 9. bxc3 {[%clk 0:02:59.4]} 9... Nge7
{[%clk 0:02:49.8]} 10. Qb3 {[%clk 0:02:58.6]} 10... O-O-O {[%clk 0:02:17.8]} 11.
Rb1 {[%clk 0:02:52.8]} 11... Qxb3 {[%clk 0:02:10.6]} 12. axb3 {[%clk 0:02:50.3]}
12... f5 {[%clk 0:01:56.2]} 13. Bd3 {[%clk 0:02:36.7]} 13... g6 {[%clk 0:01:56]}
14. h4 {[%clk 0:02:35.1]} 14... Rhf8 {[%clk 0:01:48.9]} 15. Ke2 {[%clk
0:02:28.6]} 15... exd4 {[%clk 0:01:41.5]} 16. exd4 {[%clk 0:02:10.2]} 16... Nd5
{[%clk 0:01:39.5]} 17. h5 {[%clk 0:01:46.8]} 17... Rde8+ {[%clk 0:01:19.4]} 18.
Kd1 {[%clk 0:01:39.4]} 18... Re6 {[%clk 0:01:17.4]} 19. Kc2 {[%clk 0:01:37.9]}
19... Rd6 {[%clk 0:01:10.5]} 20. Rbg1 {[%clk 0:01:36.2]} 20... Ndb4+ {[%clk
0:00:55]} 21. cxb4 {[%clk 0:01:34]} 21... Nxd4+ {[%clk 0:00:55.1]} 22. Kc3
{[%clk 0:01:32]} 22... Nxf3 {[%clk 0:00:45.2]} 23. Rg3 {[%clk 0:01:28.5]} 23...
Ne5 {[%clk 0:00:21.2]} 24. Bf4 {[%clk 0:01:26.2]} 24... Rc6+ {[%clk 0:00:18.3]}
25. Kd2 {[%clk 0:01:21.1]} 25... Ng4 {[%clk 0:00:18.5]} 26. hxg6 {[%clk
0:01:12.7]} 26... hxg6 {[%clk 0:00:19.4]} 27. Rg2 {[%clk 0:00:51.6]} 27... Rd8
{[%clk 0:00:17.6]} 28. Rh7 {[%clk 0:00:45.6]} 28... Nf6 {[%clk 0:00:15.9]} 29.
Rh3 {[%clk 0:00:39.1]} 29... Nd5 {[%clk 0:00:15.5]} 30. Bg5 {[%clk 0:00:36.6]}
30... Rdd6 {[%clk 0:00:13.5]} 31. Rh8+ {[%clk 0:00:34.7]} 31... Kd7 {[%clk
0:00:13.5]} 32. b5 {[%clk 0:00:34.3]} 32... Rc5 {[%clk 0:00:10.7]} 33. Rd8+
{[%clk 0:00:30.2]} 33... Ke6 {[%clk 0:00:10.5]} 34. Rxd6+ {[%clk 0:00:29.3]}
34... cxd6 {[%clk 0:00:11.4]} 35. Rh2 {[%clk 0:00:27.1]} 35... Nb4 {[%clk
0:00:09.9]} 36. Bc4+ {[%clk 0:00:25.9]} 36... d5 {[%clk 0:00:09.6]} 37. Be3
{[%clk 0:00:23.8]} 37... Rc7 {[%clk 0:00:06.4]} 38. Bd3 {[%clk 0:00:23]} 38...
d4 {[%clk 0:00:05.2]} 39. Bf4 {[%clk 0:00:20.6]} 39... Rc8 {[%clk 0:00:04.2]}
40. Bc4+ {[%clk 0:00:20.6]} 40... Kf6 {[%clk 0:00:04.1]} 41. Rh7 {[%clk
0:00:21.2]} 41... g5 {[%clk 0:00:04.2]} 42. Bd6 {[%clk 0:00:21.5]} 42... Na2
{[%clk 0:00:03]} 43. Rxb7 {[%clk 0:00:19.4]} 43... Nc3 {[%clk 0:00:03.5]} 44. f3
{[%clk 0:00:16.4]} 44... g4 {[%clk 0:00:03.1]} 45. Kd3 {[%clk 0:00:13.6]} 45...
gxf3 {[%clk 0:00:03]} 46. Kxd4 {[%clk 0:00:13.9]} 46... Ne2+ {[%clk 0:00:02.5]}
47. Ke3 {[%clk 0:00:13.7]} 1-0

[Event "*** SCC Grand Prix: Titled Tuesday Blitz"]
[Site "Chess.com"]
[Date "2020.08.11"]
[Round "3"]
[White "sewin16"]
[Black "ManuDavid2910"]
[Result "0-1"]
[WhiteElo "2405"]
[BlackElo "2636"]
[TimeControl "180+1"]
[EndTime "10:30:10 PDT"]
[Termination "ManuDavid2910 won on time"]

1. e4 {[%clk 0:03:00.9]} 1... c5 {[%clk 0:03:00]} 2. Nf3 {[%clk 0:03:00.3]} 2...
Nc6 {[%clk 0:03:00.1]} 3. d4 {[%clk 0:02:59.8]} 3... cxd4 {[%clk 0:03:01]} 4.
Nxd4 {[%clk 0:03:00.2]} 4... e5 {[%clk 0:03:01.9]} 5. Nb5 {[%clk 0:02:59.4]}
5... d6 {[%clk 0:03:02.3]} 6. N1c3 {[%clk 0:02:58.6]} 6... a6 {[%clk 0:03:02.9]}
7. Na3 {[%clk 0:02:59]} 7... Be6 {[%clk 0:03:03.8]} 8. Nc4 {[%clk 0:02:56.4]}
8... Nf6 {[%clk 0:03:04.7]} 9. Ne3 {[%clk 0:02:54.5]} 9... b5 {[%clk 0:03:04.3]}
10. a3 {[%clk 0:02:53.8]} 10... Nd4 {[%clk 0:03:00]} 11. Bd3 {[%clk 0:02:40.7]}
11... Be7 {[%clk 0:02:57.8]} 12. O-O {[%clk 0:02:40.2]} 12... O-O {[%clk
0:02:57.9]} 13. Ne2 {[%clk 0:02:26.9]} 13... Nxe2+ {[%clk 0:02:54.7]} 14. Qxe2
{[%clk 0:02:27.8]} 14... Qb6 {[%clk 0:02:40.2]} 15. Nf5 {[%clk 0:01:58.5]} 15...
Bxf5 {[%clk 0:02:34.7]} 16. exf5 {[%clk 0:01:59.4]} 16... Qc7 {[%clk 0:02:33.3]}
17. f4 {[%clk 0:01:38.9]} 17... Rfe8 {[%clk 0:02:31.6]} 18. fxe5 {[%clk
0:01:38.4]} 18... dxe5 {[%clk 0:02:32.5]} 19. Be4 {[%clk 0:01:31.2]} 19... Rac8
{[%clk 0:02:30.4]} 20. c3 {[%clk 0:01:29.9]} 20... Rcd8 {[%clk 0:01:54.2]} 21.
a4 {[%clk 0:01:03.9]} 21... b4 {[%clk 0:01:46]} 22. cxb4 {[%clk 0:01:01.8]}
22... Bxb4 {[%clk 0:01:41.1]} 23. Bg5 {[%clk 0:01:00.9]} 23... Rd4 {[%clk
0:01:04.7]} 24. Bxf6 {[%clk 0:00:59.4]} 24... Qb6 {[%clk 0:01:00.7]} 25. a5
{[%clk 0:00:35.5]} 25... Qxf6 {[%clk 0:00:56.6]} 26. Kh1 {[%clk 0:00:26.5]}
26... Rd2 {[%clk 0:00:52]} 27. Qc4 {[%clk 0:00:24]} 27... Rxb2 {[%clk
0:00:47.4]} 28. Rab1 {[%clk 0:00:16.8]} 28... Rxb1 {[%clk 0:00:47]} 29. Rxb1
{[%clk 0:00:16.5]} 29... Bxa5 {[%clk 0:00:47.6]} 30. Qa4 {[%clk 0:00:16.8]}
30... Qd8 {[%clk 0:00:47.2]} 31. Rd1 {[%clk 0:00:13.4]} 31... Qb8 {[%clk
0:00:19.6]} 32. Qxa5 {[%clk 0:00:12.8]} 32... h6 {[%clk 0:00:20.3]} 33. f6
{[%clk 0:00:11.2]} 33... gxf6 {[%clk 0:00:20.1]} 34. Qd5 {[%clk 0:00:10.8]}
34... Qb5 {[%clk 0:00:18.7]} 35. Qd2 {[%clk 0:00:07]} 35... Kg7 {[%clk
0:00:16.4]} 36. Qf2 {[%clk 0:00:06.2]} 36... Qa4 {[%clk 0:00:16.3]} 37. Re1
{[%clk 0:00:05.5]} 37... Rd8 {[%clk 0:00:15.7]} 38. Qf5 {[%clk 0:00:05.2]} 38...
Rd4 {[%clk 0:00:14.4]} 39. h3 {[%clk 0:00:03.5]} 39... Kf8 {[%clk 0:00:14.6]}
40. Re3 {[%clk 0:00:03.3]} 40... Ke7 {[%clk 0:00:14.6]} 41. Kh2 {[%clk
0:00:01.6]} 41... Qd7 {[%clk 0:00:14]} 42. Qf3 {[%clk 0:00:01.1]} 42... Qd6
{[%clk 0:00:13.5]} 43. Re2 {[%clk 0:00:01.6]} 43... a5 {[%clk 0:00:13.6]} 44.
Bf5 {[%clk 0:00:02]} 44... a4 {[%clk 0:00:12.7]} 45. Qh5 {[%clk 0:00:02.2]}
45... a3 {[%clk 0:00:12.3]} 46. Ra2 {[%clk 0:00:01.7]} 46... e4+ {[%clk
0:00:12.6]} 47. Kh1 {[%clk 0:00:01.1]} 47... Rd1+ {[%clk 0:00:12.5]} 0-1

[Event "*** SCC Grand Prix: Titled Tuesday Blitz"]
[Site "Chess.com"]
[Date "2020.08.11"]
[Round "3"]
[White "Thipsay"]
[Black "kngopal"]
[Result "1-0"]
[WhiteElo "2492"]
[BlackElo "2189"]
[TimeControl "180+1"]
[EndTime "10:30:10 PDT"]
[Termination "Thipsay won by checkmate"]

1. e4 {[%clk 0:03:00.9]} 1... e6 {[%clk 0:02:55.2]} 2. d4 {[%clk 0:03:00.1]}
2... d5 {[%clk 0:02:55.2]} 3. e5 {[%clk 0:03:00.1]} 3... c5 {[%clk 0:02:55]} 4.
c3 {[%clk 0:03:00.3]} 4... Nc6 {[%clk 0:02:55.1]} 5. Nf3 {[%clk 0:03:00.1]} 5...
Nh6 {[%clk 0:02:47.7]} 6. Bxh6 {[%clk 0:02:58.3]} 6... gxh6 {[%clk 0:02:47.4]}
7. Bd3 {[%clk 0:02:36.8]} 7... cxd4 {[%clk 0:02:45.1]} 8. cxd4 {[%clk
0:02:35.9]} 8... Qb6 {[%clk 0:02:45.1]} 9. Qd2 {[%clk 0:02:33.9]} 9... Bd7
{[%clk 0:02:42.1]} 10. Be2 {[%clk 0:02:31.1]} 10... Rc8 {[%clk 0:02:20.6]} 11.
Nc3 {[%clk 0:02:30.9]} 11... a6 {[%clk 0:02:16.5]} 12. O-O {[%clk 0:02:30.4]}
12... Bg7 {[%clk 0:02:14.4]} 13. Rab1 {[%clk 0:02:29.5]} 13... O-O {[%clk
0:02:13.1]} 14. Na4 {[%clk 0:02:20.1]} 14... Qd8 {[%clk 0:02:10.5]} 15. Nc5
{[%clk 0:02:19.5]} 15... Rc7 {[%clk 0:02:09.2]} 16. b4 {[%clk 0:02:16.1]} 16...
Bc8 {[%clk 0:02:05.8]} 17. Rbc1 {[%clk 0:02:06.9]} 17... f6 {[%clk 0:02:01.6]}
18. exf6 {[%clk 0:02:04.5]} 18... Qxf6 {[%clk 0:02:00.2]} 19. Rcd1 {[%clk
0:01:47.2]} 19... Qf4 {[%clk 0:01:40.1]} 20. a3 {[%clk 0:01:44.2]} 20... b6
{[%clk 0:01:29]} 21. Nxa6 {[%clk 0:01:36.1]} 21... Bxa6 {[%clk 0:01:25]} 22.
Bxa6 {[%clk 0:01:34.7]} 22... Qg4 {[%clk 0:01:21]} 23. Be2 {[%clk 0:01:31.7]}
23... Qe4 {[%clk 0:01:06.2]} 24. Rfe1 {[%clk 0:01:26.1]} 24... Qg6 {[%clk
0:00:53.3]} 25. Rc1 {[%clk 0:00:50.6]} 25... Rfc8 {[%clk 0:00:49.5]} 26. Ba6
{[%clk 0:00:40.5]} 26... Rf8 {[%clk 0:00:42.2]} 27. Be2 {[%clk 0:00:37.2]} 27...
Rfc8 {[%clk 0:00:40.5]} 28. b5 {[%clk 0:00:34.5]} 28... Na5 {[%clk 0:00:34.2]}
29. Rxc7 {[%clk 0:00:34.4]} 29... Rxc7 {[%clk 0:00:34]} 30. Bd3 {[%clk
0:00:34.6]} 30... Qe8 {[%clk 0:00:26.6]} 31. Qf4 {[%clk 0:00:32.5]} 31... Rf7
{[%clk 0:00:24]} 32. Qg4 {[%clk 0:00:31.4]} 32... Re7 {[%clk 0:00:20.4]} 33. Ne5
{[%clk 0:00:30.7]} 33... Kh8 {[%clk 0:00:20.6]} 34. h4 {[%clk 0:00:29.3]} 34...
Bxe5 {[%clk 0:00:20]} 35. Rxe5 {[%clk 0:00:29.2]} 35... Nc4 {[%clk 0:00:18.7]}
36. Bxc4 {[%clk 0:00:28.4]} 36... dxc4 {[%clk 0:00:19.2]} 37. Qe4 {[%clk
0:00:27.2]} 37... Qf7 {[%clk 0:00:13.1]} 38. Qe3 {[%clk 0:00:20.1]} 38... Qe8
{[%clk 0:00:13.2]} 39. d5 {[%clk 0:00:18.8]} 39... Qd7 {[%clk 0:00:12.3]} 40.
dxe6 {[%clk 0:00:17.7]} 40... Qd1+ {[%clk 0:00:11.5]} 41. Kh2 {[%clk 0:00:17.6]}
41... Qd3 {[%clk 0:00:09.9]} 42. Qf4 {[%clk 0:00:15]} 42... Qd8 {[%clk
0:00:05.5]} 43. Qf6+ {[%clk 0:00:13.9]} 43... Kg8 {[%clk 0:00:05.6]} 44. Re3
{[%clk 0:00:12.3]} 44... Qd6+ {[%clk 0:00:05.8]} 45. Rg3+ {[%clk 0:00:12.2]}
45... Rg7 {[%clk 0:00:05.5]} 46. Qxg7# {[%clk 0:00:11.7]} 1-0

[Event "*** SCC Grand Prix: Titled Tuesday Blitz"]
[Site "Chess.com"]
[Date "2020.08.11"]
[Round "3"]
[White "Titus369"]
[Black "Manukyan_Artak"]
[Result "0-1"]
[WhiteElo "2462"]
[BlackElo "2331"]
[TimeControl "180+1"]
[EndTime "10:30:11 PDT"]
[Termination "Manukyan_Artak won on time"]

1. e4 {[%clk 0:02:59.5]} 1... c6 {[%clk 0:02:57.6]} 2. d4 {[%clk 0:02:55.9]}
2... d5 {[%clk 0:02:57.7]} 3. Nd2 {[%clk 0:02:54.2]} 3... dxe4 {[%clk 0:02:57]}
4. Nxe4 {[%clk 0:02:55.1]} 4... Nf6 {[%clk 0:02:57.9]} 5. Nxf6+ {[%clk
0:02:45.7]} 5... exf6 {[%clk 0:02:58.8]} 6. c3 {[%clk 0:02:45.2]} 6... Bd6
{[%clk 0:02:59.7]} 7. Bd3 {[%clk 0:02:45.4]} 7... O-O {[%clk 0:02:59.7]} 8. Ne2
{[%clk 0:02:46]} 8... Qc7 {[%clk 0:02:59]} 9. Qc2 {[%clk 0:02:43.4]} 9... h5
{[%clk 0:02:57.4]} 10. Be3 {[%clk 0:02:42.4]} 10... c5 {[%clk 0:02:57]} 11.
O-O-O {[%clk 0:02:40.7]} 11... c4 {[%clk 0:02:56.5]} 12. Be4 {[%clk 0:02:25.9]}
12... Nc6 {[%clk 0:02:56.5]} 13. Ng3 {[%clk 0:02:22]} 13... h4 {[%clk 0:02:41]}
14. Nf5 {[%clk 0:02:17.4]} 14... Bxf5 {[%clk 0:02:37.4]} 15. Bxf5 {[%clk
0:02:18.3]} 15... Rfe8 {[%clk 0:02:30.5]} 16. Qe2 {[%clk 0:02:14.8]} 16... g6
{[%clk 0:02:28.4]} 17. Bc2 {[%clk 0:02:10.1]} 17... Bf4 {[%clk 0:02:19.4]} 18.
Qxc4 {[%clk 0:01:46.3]} 18... b5 {[%clk 0:01:43.6]} 19. Qc5 {[%clk 0:01:36.4]}
19... Bd6 {[%clk 0:01:38]} 20. Qd5 {[%clk 0:01:28.8]} 20... Kg7 {[%clk 0:01:35]}
21. g3 {[%clk 0:01:23.5]} 21... Rac8 {[%clk 0:01:28.3]} 22. gxh4 {[%clk
0:01:11.4]} 22... Nb4 {[%clk 0:01:28]} 23. Qb3 {[%clk 0:01:10.4]} 23... Nxc2
{[%clk 0:01:26.3]} 24. Qxc2 {[%clk 0:01:11]} 24... b4 {[%clk 0:01:25]} 25. Rd3
{[%clk 0:01:07.2]} 25... bxc3 {[%clk 0:01:22.3]} 26. Rxc3 {[%clk 0:01:04.6]}
26... Qb7 {[%clk 0:01:22.5]} 27. Rg1 {[%clk 0:00:58]} 27... Rxc3 {[%clk
0:01:20.4]} 28. bxc3 {[%clk 0:00:57.2]} 28... Ba3+ {[%clk 0:01:19.8]} 29. Kd2
{[%clk 0:00:53.8]} 29... Rh8 {[%clk 0:00:34.7]} 30. Rg4 {[%clk 0:00:44.6]} 30...
Rh5 {[%clk 0:00:32.4]} 31. c4 {[%clk 0:00:33.4]} 31... Bb4+ {[%clk 0:00:30.4]}
32. Ke2 {[%clk 0:00:32.2]} 32... Qh1 {[%clk 0:00:25.4]} 33. Qd1 {[%clk
0:00:30.5]} 33... Qxh2 {[%clk 0:00:21.6]} 34. Qg1 {[%clk 0:00:28.4]} 34... Qxg1
{[%clk 0:00:19.9]} 35. Rxg1 {[%clk 0:00:28.4]} 35... Rxh4 {[%clk 0:00:20.8]} 36.
c5 {[%clk 0:00:26]} 36... f5 {[%clk 0:00:19.6]} 37. c6 {[%clk 0:00:21.8]} 37...
Bd6 {[%clk 0:00:19.7]} 38. Rb1 {[%clk 0:00:19.4]} 38... f4 {[%clk 0:00:18.8]}
39. Bd2 {[%clk 0:00:19.1]} 39... f3+ {[%clk 0:00:18.8]} 40. Kxf3 {[%clk
0:00:18.6]} 40... Kf6 {[%clk 0:00:18]} 41. Rb7 {[%clk 0:00:17.6]} 41... Ke6
{[%clk 0:00:17.9]} 42. Be3 {[%clk 0:00:13.7]} 42... Rh5 {[%clk 0:00:15]} 43. Ke4
{[%clk 0:00:09.7]} 43... Rh4+ {[%clk 0:00:14]} 44. Kd3 {[%clk 0:00:09.9]} 44...
f5 {[%clk 0:00:11.2]} 45. Rxa7 {[%clk 0:00:08.7]} 45... f4 {[%clk 0:00:11.5]}
46. Bd2 {[%clk 0:00:08.7]} 46... Kd5 {[%clk 0:00:10.3]} 47. c7 {[%clk
0:00:07.5]} 47... Rh8 {[%clk 0:00:10.3]} 0-1